[Event "Titled Tuesday Blitz December 06 Late 2022"]
[White "Meunier, Clement"]
[Black "O`Gorman, Tom"]
[WhiteFideId "20667930"]
[BlackFideId "2508249"]
[WhiteElo "2441"]
[BlackElo "2602"]
[Result "0-1"]
[Round "08"]
[TimeControl "180+1"]
[Date "2022.12.07"]
[WhiteClock "0:00:02"]
[BlackClock "0:00:44"]

1. e4 {[%clk 0:03:00]}  c5 {[%clk 0:02:58]} 2. Nf3 {[%clk 0:02:56]}  d6 {[%clk 0:02:59]} 3. Bb5+ {[%clk 0:02:55]}  Bd7 {[%clk 0:02:58]} 4. Bxd7+ {[%clk 0:02:53]}  Nxd7 {[%clk 0:02:59]} 5. O-O {[%clk 0:02:54]}  Ngf6 {[%clk 0:02:58]} 6. Re1 {[%clk 0:02:54]}  e6 {[%clk 0:02:58]} 7. c3 {[%clk 0:02:52]}  Be7 {[%clk 0:02:55]} 8. d4 {[%clk 0:02:53]}  O-O {[%clk 0:02:55]} 9. e5 {[%clk 0:02:51]}  Nd5 {[%clk 0:02:50]} 10. exd6 {[%clk 0:01:58]}  Bxd6 {[%clk 0:02:50]} 11. c4 {[%clk 0:01:47]}  N5b6 {[%clk 0:02:38]} 12. b3 {[%clk 0:01:47]}  Qe7 {[%clk 0:02:35]} 13. Bb2 {[%clk 0:01:44]}  Rfd8 {[%clk 0:02:34]} 14. Qe2 {[%clk 0:01:44]}  cxd4 {[%clk 0:02:05]} 15. Nxd4 {[%clk 0:01:42]}  Bb4 {[%clk 0:01:59]} 16. Nc3 {[%clk 0:01:32]}  Nc5 {[%clk 0:01:51]} 17. Rad1 {[%clk 0:01:26]}  Qf6 {[%clk 0:01:51]} 18. a3 {[%clk 0:01:13]}  Rxd4 {[%clk 0:01:43]} 19. axb4 {[%clk 0:00:53]}  Nxb3 {[%clk 0:01:43]} 20. Ne4 {[%clk 0:00:32]}  Rxe4 {[%clk 0:01:39]} 21. Qxe4 {[%clk 0:00:30]}  Qxb2 {[%clk 0:01:38]} 22. Qxb7 {[%clk 0:00:30]}  Rf8 {[%clk 0:01:36]} 23. Qxa7 {[%clk 0:00:19]}  Nxc4 {[%clk 0:01:36]} 24. b5 {[%clk 0:00:19]}  Nbd2 {[%clk 0:01:30]} 25. Qc5 {[%clk 0:00:17]}  g6 {[%clk 0:01:23]} 26. Re2 {[%clk 0:00:16]}  Rb8 {[%clk 0:01:20]} 27. Kh1 {[%clk 0:00:10]}  Qxb5 {[%clk 0:01:19]} 28. Qd4 {[%clk 0:00:08]}  Qd5 {[%clk 0:01:12]} 29. Qc3 {[%clk 0:00:04]}  Rd8 {[%clk 0:01:07]} 30. h3 {[%clk 0:00:04]}  Qd4 {[%clk 0:01:04]} 31. Qc2 {[%clk 0:00:02]}  Qd3 {[%clk 0:01:04]} 32. Qxd3 {[%clk 0:00:02]}  Rxd3 {[%clk 0:01:05]} 33. g3 {[%clk 0:00:01]}  Kg7 {[%clk 0:01:02]} 34. Kg2 {[%clk 0:00:02]}  Kf6 {[%clk 0:01:00]} 35. h4 {[%clk 0:00:02]}  Rd4 {[%clk 0:00:56]} 36. Rc1 {[%clk 0:00:03]}  Ne4 {[%clk 0:00:50]} 37. Ra1 {[%clk 0:00:02]}  Ncd6 {[%clk 0:00:50]} 38. Ra7 {[%clk 0:00:02]}  Nf5 {[%clk 0:00:45]} 39. Rc2 {[%clk 0:00:02]}  Ned6 {[%clk 0:00:44]} 0-1


[Site "https://www.chess.com"]

[Event "Titled Tuesday Blitz December 06 Late 2022"]
[White "Osmonbekov, Talaibek"]
[Black "Joubert, Dantelle"]
[WhiteFideId "2017253"]
[BlackFideId "14310813"]
[WhiteElo "2135"]
[BlackElo "1507"]
[Result "0-1"]
[Round "08"]
[TimeControl "180+1"]
[Date "2022.12.07"]
[WhiteClock "0:00:02"]
[BlackClock "0:00:19"]

1. d4 {[%clk 0:03:00]}  d5 {[%clk 0:02:58]} 2. Bf4 {[%clk 0:02:59]}  Nf6 {[%clk 0:02:56]} 3. Nc3 {[%clk 0:02:59]}  c6 {[%clk 0:02:48]} 4. e3 {[%clk 0:02:57]}  Bf5 {[%clk 0:02:47]} 5. f3 {[%clk 0:02:57]}  Qa5 {[%clk 0:02:25]} 6. g4 {[%clk 0:02:53]}  Bg6 {[%clk 0:02:23]} 7. h4 {[%clk 0:02:53]}  h5 {[%clk 0:02:22]} 8. g5 {[%clk 0:02:53]}  Nfd7 {[%clk 0:02:21]} 9. Bd3 {[%clk 0:02:53]}  Bxd3 {[%clk 0:02:15]} 10. Qxd3 {[%clk 0:02:54]}  e6 {[%clk 0:02:14]} 11. O-O-O {[%clk 0:02:51]}  Bb4 {[%clk 0:02:12]} 12. Nge2 {[%clk 0:02:50]}  g6 {[%clk 0:02:11]} 13. e4 {[%clk 0:02:50]}  Na6 {[%clk 0:01:54]} 14. exd5 {[%clk 0:02:32]}  cxd5 {[%clk 0:01:53]} 15. Kb1 {[%clk 0:02:27]}  Rc8 {[%clk 0:01:51]} 16. Nb5 {[%clk 0:02:21]}  O-O {[%clk 0:01:44]} 17. c3 {[%clk 0:02:01]}  Be7 {[%clk 0:01:40]} 18. Bd6 {[%clk 0:01:59]}  Bxd6 {[%clk 0:01:33]} 19. Nxd6 {[%clk 0:01:58]}  Rc7 {[%clk 0:01:27]} 20. Nf4 {[%clk 0:01:57]}  Qb6 {[%clk 0:01:11]} 21. Nb5 {[%clk 0:01:44]}  Kg7 {[%clk 0:00:52]} 22. Nxc7 {[%clk 0:01:31]}  Nxc7 {[%clk 0:00:48]} 23. Rhe1 {[%clk 0:01:26]}  a5 {[%clk 0:00:47]} 24. Qd2 {[%clk 0:01:03]}  a4 {[%clk 0:00:37]} 25. Nd3 {[%clk 0:01:01]}  Nb5 {[%clk 0:00:35]} 26. Ne5 {[%clk 0:00:46]}  Nxe5 {[%clk 0:00:32]} 27. dxe5 {[%clk 0:00:45]}  Rc8 {[%clk 0:00:30]} 28. Rc1 {[%clk 0:00:23]}  Rc4 {[%clk 0:00:25]} 29. Rh1 {[%clk 0:00:11]}  Qc5 {[%clk 0:00:23]} 30. Ka1 {[%clk 0:00:10]}  a3 {[%clk 0:00:22]} 31. b3 {[%clk 0:00:02]}  Rxc3 {[%clk 0:00:20]} 32. Rxc3 {[%clk 0:00:02]}  Nxc3 {[%clk 0:00:20]} 33. Rc1 {[%clk 0:00:02]}  d4 {[%clk 0:00:19]} 0-1


[Site "https://www.chess.com"]

[Event "Titled Tuesday Blitz December 06 Late 2022"]
[White "Pakleza, Zbigniew"]
[Black "Ezat, Mohamed"]
[WhiteFideId "1119290"]
[BlackFideId "10600906"]
[WhiteElo "2410"]
[BlackElo "2388"]
[Result "1-0"]
[Round "08"]
[TimeControl "180+1"]
[Date "2022.12.06"]
[WhiteClock "0:00:06"]
[BlackClock "0:00:05"]

1. d4 {[%clk 0:02:57]}  Nf6 {[%clk 0:02:59]} 2. Nf3 {[%clk 0:02:57]}  g6 {[%clk 0:02:59]} 3. Bf4 {[%clk 0:02:57]}  Bg7 {[%clk 0:02:57]} 4. e3 {[%clk 0:02:57]}  O-O {[%clk 0:02:57]} 5. Be2 {[%clk 0:02:58]}  d6 {[%clk 0:02:56]} 6. h3 {[%clk 0:02:58]}  b6 {[%clk 0:02:57]} 7. O-O {[%clk 0:02:58]}  Bb7 {[%clk 0:02:57]} 8. c3 {[%clk 0:02:57]}  Nbd7 {[%clk 0:02:58]} 9. Nbd2 {[%clk 0:02:56]}  Qe8 {[%clk 0:02:58]} 10. Bh2 {[%clk 0:02:55]}  e5 {[%clk 0:02:58]} 11. a4 {[%clk 0:02:56]}  a5 {[%clk 0:02:56]} 12. Qb3 {[%clk 0:02:54]}  Qe7 {[%clk 0:02:56]} 13. Rfd1 {[%clk 0:02:53]}  Ne4 {[%clk 0:02:56]} 14. Nxe4 {[%clk 0:02:48]}  Bxe4 {[%clk 0:02:56]} 15. Nd2 {[%clk 0:02:49]}  Bb7 {[%clk 0:02:56]} 16. Bf3 {[%clk 0:02:49]}  e4 {[%clk 0:02:51]} 17. Be2 {[%clk 0:02:49]}  Kh8 {[%clk 0:02:49]} 18. Rac1 {[%clk 0:02:20]}  f5 {[%clk 0:02:48]} 19. c4 {[%clk 0:02:20]}  g5 {[%clk 0:02:39]} 20. c5 {[%clk 0:01:07]}  dxc5 {[%clk 0:02:38]} 21. dxc5 {[%clk 0:01:05]}  Nxc5 {[%clk 0:02:37]} 22. Qa3 {[%clk 0:01:03]}  f4 {[%clk 0:02:35]} 23. Bb5 {[%clk 0:00:45]}  Rad8 {[%clk 0:02:26]} 24. Nf1 {[%clk 0:00:38]}  Qe5 {[%clk 0:02:12]} 25. b4 {[%clk 0:00:31]}  axb4 {[%clk 0:02:05]} 26. Qxb4 {[%clk 0:00:32]}  Qb2 {[%clk 0:01:16]} 27. Qxb2 {[%clk 0:00:27]}  Bxb2 {[%clk 0:01:16]} 28. Rb1 {[%clk 0:00:28]}  Be5 {[%clk 0:01:12]} 29. Nd2 {[%clk 0:00:21]}  Bd6 {[%clk 0:01:00]} 30. Nc4 {[%clk 0:00:18]}  fxe3 {[%clk 0:00:59]} 31. Nxd6 {[%clk 0:00:13]}  exf2+ {[%clk 0:00:59]} 32. Kf1 {[%clk 0:00:14]}  cxd6 {[%clk 0:00:50]} 33. Bxd6 {[%clk 0:00:15]}  e3 {[%clk 0:00:49]} 34. Be5+ {[%clk 0:00:10]}  Kg8 {[%clk 0:00:35]} 35. Bc4+ {[%clk 0:00:10]}  Bd5 {[%clk 0:00:32]} 36. Rxd5 {[%clk 0:00:11]}  Ne6 {[%clk 0:00:07]} 37. Rxd8 {[%clk 0:00:10]}  Rxd8 {[%clk 0:00:07]} 38. Bxe6+ {[%clk 0:00:10]}  Kf8 {[%clk 0:00:08]} 39. Bg4 {[%clk 0:00:08]}  Rd2 {[%clk 0:00:05]} 40. Bc3 {[%clk 0:00:06]}  Rc2 {[%clk 0:00:05]} 41. Bd4 {[%clk 0:00:06]} 1-0


[Site "https://www.chess.com"]

[Event "Titled Tuesday Blitz December 06 Late 2022"]
[White "Pultinevicius, Paulius"]
[Black "Maghsoodloo, Parham"]
[WhiteFideId "12809390"]
[BlackFideId "12539929"]
[WhiteElo "2486"]
[BlackElo "2672"]
[Result "0-1"]
[Round "08"]
[TimeControl "180+1"]
[Date "2022.12.06"]
[WhiteClock "0:00:59"]
[BlackClock "0:00:56"]

1. b3 {[%clk 0:03:00]}  c5 {[%clk 0:02:54]} 2. Bb2 {[%clk 0:03:00]}  Nc6 {[%clk 0:02:55]} 3. c4 {[%clk 0:02:59]}  e5 {[%clk 0:02:51]} 4. e3 {[%clk 0:02:54]}  Nf6 {[%clk 0:02:47]} 5. Nc3 {[%clk 0:02:53]}  g6 {[%clk 0:02:37]} 6. Nf3 {[%clk 0:02:47]}  Bg7 {[%clk 0:02:38]} 7. Be2 {[%clk 0:02:42]}  O-O {[%clk 0:02:38]} 8. O-O {[%clk 0:02:43]}  d5 {[%clk 0:02:37]} 9. cxd5 {[%clk 0:02:39]}  Nxd5 {[%clk 0:02:38]} 10. Nxd5 {[%clk 0:02:34]}  Qxd5 {[%clk 0:02:38]} 11. Rc1 {[%clk 0:02:33]}  Bf5 {[%clk 0:02:10]} 12. Bb5 {[%clk 0:02:15]}  Rac8 {[%clk 0:02:00]} 13. Qe2 {[%clk 0:01:35]}  e4 {[%clk 0:01:46]} 14. Bxg7 {[%clk 0:01:20]}  exf3 {[%clk 0:01:46]} 15. gxf3 {[%clk 0:01:20]}  Kxg7 {[%clk 0:01:46]} 16. e4 {[%clk 0:01:20]}  Bxe4 {[%clk 0:01:06]} 17. fxe4 {[%clk 0:01:19]}  Qg5+ {[%clk 0:01:06]} 18. Kh1 {[%clk 0:01:16]}  Nd4 {[%clk 0:01:06]} 19. Qd3 {[%clk 0:01:11]}  Qf4 {[%clk 0:00:59]} 20. Bc4 {[%clk 0:00:59]}  Nf3 {[%clk 0:00:57]} 21. Kg2 {[%clk 0:00:59]}  Qg4+ {[%clk 0:00:56]} 0-1


[Site "https://www.chess.com"]

[Event "Titled Tuesday Blitz December 06 Late 2022"]
[White "Rose, Felix"]
[Black "Papayan, Oleg"]
[WhiteFideId "5105722"]
[BlackFideId "4193911"]
[WhiteElo "2039"]
[BlackElo "2153"]
[Result "0-1"]
[Round "08"]
[TimeControl "180+1"]
[Date "2022.12.07"]
[WhiteClock "0:00:17"]
[BlackClock "0:00:29"]

1. e4 {[%clk 0:03:00]}  e5 {[%clk 0:02:58]} 2. Nf3 {[%clk 0:03:00]}  Nc6 {[%clk 0:02:56]} 3. Bb5 {[%clk 0:02:59]}  Nf6 {[%clk 0:02:56]} 4. O-O {[%clk 0:02:58]}  Nxe4 {[%clk 0:02:57]} 5. d4 {[%clk 0:02:59]}  Nd6 {[%clk 0:02:57]} 6. dxe5 {[%clk 0:02:59]}  Nxb5 {[%clk 0:02:57]} 7. a4 {[%clk 0:02:59]}  d6 {[%clk 0:02:58]} 8. axb5 {[%clk 0:02:55]}  Nxe5 {[%clk 0:02:58]} 9. Re1 {[%clk 0:02:55]}  Be7 {[%clk 0:02:55]} 10. Nxe5 {[%clk 0:02:55]}  dxe5 {[%clk 0:02:56]} 11. Qxd8+ {[%clk 0:02:54]}  Kxd8 {[%clk 0:02:57]} 12. Rxe5 {[%clk 0:02:54]}  Bd6 {[%clk 0:02:57]} 13. Re2 {[%clk 0:02:52]}  Bg4 {[%clk 0:02:57]} 14. f3 {[%clk 0:02:50]}  Bf5 {[%clk 0:02:53]} 15. Bg5+ {[%clk 0:02:43]}  f6 {[%clk 0:02:53]} 16. Be3 {[%clk 0:02:43]}  Re8 {[%clk 0:02:51]} 17. Kf2 {[%clk 0:02:36]}  Re5 {[%clk 0:02:10]} 18. Nc3 {[%clk 0:02:24]}  Bb4 {[%clk 0:02:08]} 19. Rd2+ {[%clk 0:02:02]}  Kc8 {[%clk 0:01:55]} 20. g4 {[%clk 0:01:57]}  Bg6 {[%clk 0:01:17]} 21. Rad1 {[%clk 0:01:33]}  b6 {[%clk 0:01:07]} 22. Rd8+ {[%clk 0:01:26]}  Kb7 {[%clk 0:01:07]} 23. Rxa8 {[%clk 0:01:27]}  Kxa8 {[%clk 0:01:08]} 24. Rd7 {[%clk 0:01:19]}  Bxc3 {[%clk 0:00:49]} 25. bxc3 {[%clk 0:01:18]}  Rxb5 {[%clk 0:00:50]} 26. Rxc7 {[%clk 0:01:14]}  a5 {[%clk 0:00:50]} 27. c4 {[%clk 0:01:10]}  Rb2 {[%clk 0:00:45]} 28. Kg3 {[%clk 0:01:09]}  a4 {[%clk 0:00:44]} 29. Bd4 {[%clk 0:00:49]}  Rxc2 {[%clk 0:00:43]} 30. Bxb6 {[%clk 0:00:47]}  Kb8 {[%clk 0:00:41]} 31. c5 {[%clk 0:00:42]}  a3 {[%clk 0:00:41]} 32. Ra7 {[%clk 0:00:42]}  a2 {[%clk 0:00:41]} 33. Ra6 {[%clk 0:00:28]}  Bf7 {[%clk 0:00:35]} 34. Ra3 {[%clk 0:00:17]}  Rc1 {[%clk 0:00:31]} 35. c6 {[%clk 0:00:17]}  a1=Q {[%clk 0:00:29]} 36. c7+ {[%clk 0:00:14]}  Kb7 {[%clk 0:00:26]} 37. Rxa1 {[%clk 0:00:11]}  Rxa1 {[%clk 0:00:26]} 38. Bc5 {[%clk 0:00:10]}  Rc1 {[%clk 0:00:25]} 39. Bf8 {[%clk 0:00:10]}  g6 {[%clk 0:00:24]} 40. Bd6 {[%clk 0:00:10]}  Rxc7 {[%clk 0:00:22]} 41. Bxc7 {[%clk 0:00:10]}  Kxc7 {[%clk 0:00:23]} 42. h4 {[%clk 0:00:10]}  Kd6 {[%clk 0:00:22]} 43. Kf4 {[%clk 0:00:11]}  Kd5 {[%clk 0:00:21]} 44. g5 {[%clk 0:00:09]}  f5 {[%clk 0:00:21]} 45. h5 {[%clk 0:00:10]}  Kd4 {[%clk 0:00:21]} 46. hxg6 {[%clk 0:00:09]}  hxg6 {[%clk 0:00:22]} 47. Kg3 {[%clk 0:00:10]}  Ke3 {[%clk 0:00:22]} 48. Kg2 {[%clk 0:00:10]}  Bd5 {[%clk 0:00:22]} 49. Kg3 {[%clk 0:00:10]}  Bxf3 {[%clk 0:00:23]} 50. Kh4 {[%clk 0:00:11]}  Kf4 {[%clk 0:00:21]} 51. Kh3 {[%clk 0:00:11]}  Kxg5 {[%clk 0:00:22]} 52. Kg3 {[%clk 0:00:12]}  Bg4 {[%clk 0:00:23]} 53. Kg2 {[%clk 0:00:12]}  f4 {[%clk 0:00:24]} 54. Kf2 {[%clk 0:00:12]}  Kf5 {[%clk 0:00:25]} 55. Kg2 {[%clk 0:00:12]}  g5 {[%clk 0:00:26]} 56. Kf2 {[%clk 0:00:13]}  Bh5 {[%clk 0:00:27]} 57. Kg2 {[%clk 0:00:13]}  g4 {[%clk 0:00:27]} 58. Kh2 {[%clk 0:00:14]}  g3+ {[%clk 0:00:28]} 59. Kh3 {[%clk 0:00:15]}  Bg4+ {[%clk 0:00:28]} 60. Kg2 {[%clk 0:00:15]}  Kg5 {[%clk 0:00:29]} 61. Kh1 {[%clk 0:00:15]}  Kh4 {[%clk 0:00:30]} 62. Kg2 {[%clk 0:00:16]}  f3+ {[%clk 0:00:31]} 63. Kg1 {[%clk 0:00:16]}  Kh3 {[%clk 0:00:31]} 64. Kh1 {[%clk 0:00:17]}  Bc8 {[%clk 0:00:29]} 65. Kg1 {[%clk 0:00:17]}  f2+ {[%clk 0:00:29]} 66. Kf1 {[%clk 0:00:17]}  Ba6# {[%clk 0:00:29]} 0-1


[Site "https://www.chess.com"]

[Event "Titled Tuesday Blitz December 06 Late 2022"]
[White "Rosenthal, Nicholas"]
[Black "Bortnyk, Olexandr"]
[WhiteFideId "2045150"]
[BlackFideId "14120828"]
[WhiteElo "2182"]
[BlackElo "2723"]
[Result "1-0"]
[Round "08"]
[TimeControl "180+1"]
[Date "2022.12.06"]
[WhiteClock "0:00:08"]
[BlackClock "0:00:02"]

1. e4 {[%clk 0:03:00]}  Nf6 {[%clk 0:02:58]} 2. Nc3 {[%clk 0:02:56]}  d5 {[%clk 0:02:58]} 3. exd5 {[%clk 0:02:45]}  Nxd5 {[%clk 0:02:59]} 4. d4 {[%clk 0:02:43]}  Nxc3 {[%clk 0:02:58]} 5. bxc3 {[%clk 0:02:44]}  g6 {[%clk 0:02:59]} 6. Nf3 {[%clk 0:02:44]}  Bg7 {[%clk 0:02:59]} 7. Bc4 {[%clk 0:02:44]}  O-O {[%clk 0:03:00]} 8. O-O {[%clk 0:02:44]}  c5 {[%clk 0:03:00]} 9. Rb1 {[%clk 0:02:42]}  Qc7 {[%clk 0:02:43]} 10. Qe2 {[%clk 0:02:31]}  cxd4 {[%clk 0:02:40]} 11. cxd4 {[%clk 0:02:30]}  Nc6 {[%clk 0:02:37]} 12. Be3 {[%clk 0:02:08]}  Bg4 {[%clk 0:02:36]} 13. Rfd1 {[%clk 0:02:06]}  Rac8 {[%clk 0:02:33]} 14. h3 {[%clk 0:02:02]}  Bxf3 {[%clk 0:02:06]} 15. Qxf3 {[%clk 0:02:03]}  a6 {[%clk 0:02:02]} 16. Bd5 {[%clk 0:01:57]}  b5 {[%clk 0:02:00]} 17. c4 {[%clk 0:01:49]}  bxc4 {[%clk 0:01:59]} 18. Bxc4 {[%clk 0:01:49]}  Nxd4 {[%clk 0:01:59]} 19. Bxd4 {[%clk 0:01:43]}  Qxc4 {[%clk 0:01:59]} 20. Bxg7 {[%clk 0:01:41]}  Kxg7 {[%clk 0:01:59]} 21. Rb7 {[%clk 0:01:37]}  e5 {[%clk 0:01:59]} 22. Rd6 {[%clk 0:01:32]}  Qxa2 {[%clk 0:01:41]} 23. Qf6+ {[%clk 0:01:31]}  Kg8 {[%clk 0:01:42]} 24. Rxa6 {[%clk 0:01:28]}  Qd5 {[%clk 0:01:01]} 25. Re7 {[%clk 0:01:20]}  e4 {[%clk 0:00:44]} 26. Rd6 {[%clk 0:00:58]}  Qc4 {[%clk 0:00:29]} 27. Kh2 {[%clk 0:00:51]}  Rce8 {[%clk 0:00:24]} 28. Rdd7 {[%clk 0:00:32]}  Qa2 {[%clk 0:00:24]} 29. h4 {[%clk 0:00:21]}  Rxe7 {[%clk 0:00:13]} 30. Rxe7 {[%clk 0:00:22]}  Qd5 {[%clk 0:00:12]} 31. g3 {[%clk 0:00:19]}  h5 {[%clk 0:00:10]} 32. Re5 {[%clk 0:00:18]}  Qd4 {[%clk 0:00:08]} 33. Qf4 {[%clk 0:00:15]}  f5 {[%clk 0:00:06]} 34. Re7 {[%clk 0:00:15]}  Rf7 {[%clk 0:00:06]} 35. Re8+ {[%clk 0:00:15]}  Kg7 {[%clk 0:00:06]} 36. Kg2 {[%clk 0:00:15]}  Qd5 {[%clk 0:00:03]} 37. Kg1 {[%clk 0:00:12]}  Qd1+ {[%clk 0:00:03]} 38. Kg2 {[%clk 0:00:13]}  Qd5 {[%clk 0:00:04]} 39. Qb8 {[%clk 0:00:11]}  e3+ {[%clk 0:00:04]} 40. Kh2 {[%clk 0:00:11]}  exf2 {[%clk 0:00:03]} 41. Rg8+ {[%clk 0:00:10]}  Kf6 {[%clk 0:00:04]} 42. Qb2+ {[%clk 0:00:09]}  Ke7 {[%clk 0:00:03]} 43. Qxf2 {[%clk 0:00:08]}  Qd6 {[%clk 0:00:02]} 44. Qe3+ {[%clk 0:00:08]}  Kd7 {[%clk 0:00:02]} 45. Qe8+ {[%clk 0:00:08]} 1-0


[Site "https://www.chess.com"]

[Event "Titled Tuesday Blitz December 06 Late 2022"]
[White "Rustemov, Alexander"]
[Black "Martinez Reyes, Pedro Ramon"]
[WhiteFideId "4119002"]
[BlackFideId "3901807"]
[WhiteElo "2784"]
[BlackElo "2535"]
[Result "1-0"]
[Round "08"]
[TimeControl "180+1"]
[Date "2022.12.07"]
[WhiteClock "0:01:11"]
[BlackClock "0:00:33"]

1. d4 {[%clk 0:02:56]}  f5 {[%clk 0:02:39]} 2. g3 {[%clk 0:02:56]}  Nf6 {[%clk 0:02:39]} 3. Bg2 {[%clk 0:02:56]}  d5 {[%clk 0:02:39]} 4. Nf3 {[%clk 0:02:55]}  e6 {[%clk 0:02:39]} 5. Bf4 {[%clk 0:02:55]}  c6 {[%clk 0:02:40]} 6. O-O {[%clk 0:02:54]}  Bd6 {[%clk 0:02:40]} 7. Bxd6 {[%clk 0:02:51]}  Qxd6 {[%clk 0:02:41]} 8. c4 {[%clk 0:02:50]}  O-O {[%clk 0:02:40]} 9. Nbd2 {[%clk 0:02:47]}  Bd7 {[%clk 0:02:36]} 10. Qb3 {[%clk 0:02:43]}  Qc7 {[%clk 0:02:29]} 11. Rac1 {[%clk 0:02:40]}  Be8 {[%clk 0:02:28]} 12. Ne5 {[%clk 0:02:38]}  Qe7 {[%clk 0:02:20]} 13. Ndf3 {[%clk 0:02:31]}  Bh5 {[%clk 0:02:19]} 14. Nd3 {[%clk 0:02:23]}  Ne4 {[%clk 0:02:12]} 15. Rc2 {[%clk 0:02:20]}  a5 {[%clk 0:02:06]} 16. a3 {[%clk 0:02:13]}  Na6 {[%clk 0:02:03]} 17. Rfc1 {[%clk 0:02:11]}  Nd6 {[%clk 0:01:54]} 18. Nfe5 {[%clk 0:02:09]}  g5 {[%clk 0:01:46]} 19. e3 {[%clk 0:02:07]}  Rfb8 {[%clk 0:01:21]} 20. Qb6 {[%clk 0:02:00]}  Qd8 {[%clk 0:01:18]} 21. Qxd8+ {[%clk 0:01:56]}  Rxd8 {[%clk 0:01:19]} 22. f4 {[%clk 0:01:43]}  gxf4 {[%clk 0:01:08]} 23. Nxf4 {[%clk 0:01:42]}  Bf7 {[%clk 0:01:06]} 24. c5 {[%clk 0:01:39]}  Ne8 {[%clk 0:01:01]} 25. g4 {[%clk 0:01:36]}  fxg4 {[%clk 0:00:55]} 26. Nxg4 {[%clk 0:01:35]}  Nac7 {[%clk 0:00:46]} 27. Rf2 {[%clk 0:01:34]}  Ng7 {[%clk 0:00:41]} 28. Nh6+ {[%clk 0:01:30]}  Kf8 {[%clk 0:00:41]} 29. Nxf7 {[%clk 0:01:30]}  Kxf7 {[%clk 0:00:41]} 30. Nxd5+ {[%clk 0:01:30]}  Kg6 {[%clk 0:00:37]} 31. Rf6+ {[%clk 0:01:14]}  Kg5 {[%clk 0:00:35]} 32. h4+ {[%clk 0:01:13]}  Kxh4 {[%clk 0:00:33]} 33. Nxc7 {[%clk 0:01:13]}  Rd7 {[%clk 0:00:33]} 34. Nxa8 {[%clk 0:01:11]} 1-0


[Site "https://www.chess.com"]

[Event "Titled Tuesday Blitz December 06 Late 2022"]
[White "Sanchez, Robert"]
[Black "Gerbelli Neto, Eduardo"]
[WhiteFideId "2034360"]
[BlackFideId "2103281"]
[WhiteElo "2303"]
[BlackElo "2178"]
[Result "1-0"]
[Round "08"]
[TimeControl "180+1"]
[Date "2022.12.07"]
[WhiteClock "0:00:45"]
[BlackClock "0:00:08"]

1. e4 {[%clk 0:03:00]}  e5 {[%clk 0:02:59]} 2. Nf3 {[%clk 0:03:00]}  Nc6 {[%clk 0:02:59]} 3. Bb5 {[%clk 0:03:00]}  a6 {[%clk 0:02:59]} 4. Ba4 {[%clk 0:03:01]}  d6 {[%clk 0:02:59]} 5. c3 {[%clk 0:03:00]}  f5 {[%clk 0:02:56]} 6. d3 {[%clk 0:02:57]}  Be7 {[%clk 0:02:55]} 7. O-O {[%clk 0:02:58]}  Nf6 {[%clk 0:02:55]} 8. exf5 {[%clk 0:02:58]}  Bxf5 {[%clk 0:02:55]} 9. d4 {[%clk 0:02:58]}  e4 {[%clk 0:02:53]} 10. Nfd2 {[%clk 0:02:54]}  d5 {[%clk 0:02:49]} 11. f3 {[%clk 0:02:54]}  exf3 {[%clk 0:02:36]} 12. Nxf3 {[%clk 0:02:48]}  Bg4 {[%clk 0:02:33]} 13. h3 {[%clk 0:02:46]}  Bd7 {[%clk 0:02:15]} 14. Bxc6 {[%clk 0:02:44]}  bxc6 {[%clk 0:02:12]} 15. Ne5 {[%clk 0:02:43]}  O-O {[%clk 0:02:12]} 16. Bg5 {[%clk 0:02:35]}  c5 {[%clk 0:02:05]} 17. Nd2 {[%clk 0:02:31]}  cxd4 {[%clk 0:02:04]} 18. cxd4 {[%clk 0:02:31]}  Bb5 {[%clk 0:01:46]} 19. Re1 {[%clk 0:02:22]}  c5 {[%clk 0:01:10]} 20. dxc5 {[%clk 0:02:11]}  Bxc5+ {[%clk 0:01:10]} 21. Kh1 {[%clk 0:02:12]}  Bf2 {[%clk 0:00:56]} 22. Ndf3 {[%clk 0:01:57]}  Bxe1 {[%clk 0:00:53]} 23. Qxe1 {[%clk 0:01:58]}  Qe8 {[%clk 0:00:51]} 24. Qd2 {[%clk 0:01:54]}  Bc6 {[%clk 0:00:39]} 25. Bxf6 {[%clk 0:01:32]}  Rxf6 {[%clk 0:00:34]} 26. Rc1 {[%clk 0:01:30]}  Bb7 {[%clk 0:00:24]} 27. Rc7 {[%clk 0:01:26]}  Rb8 {[%clk 0:00:20]} 28. Rxb7 {[%clk 0:01:25]}  Rxb7 {[%clk 0:00:19]} 29. Qxd5+ {[%clk 0:01:25]}  Rbf7 {[%clk 0:00:17]} 30. Ng5 {[%clk 0:01:20]}  Rf1+ {[%clk 0:00:17]} 31. Kh2 {[%clk 0:01:21]}  h6 {[%clk 0:00:14]} 32. Ngxf7 {[%clk 0:01:21]}  Rxf7 {[%clk 0:00:15]} 33. Nxf7 {[%clk 0:01:19]}  Qxf7 {[%clk 0:00:15]} 34. Qa8+ {[%clk 0:01:19]}  Kh7 {[%clk 0:00:16]} 35. Qxa6 {[%clk 0:01:19]}  Qf4+ {[%clk 0:00:15]} 36. Kg1 {[%clk 0:01:16]}  Qc1+ {[%clk 0:00:15]} 37. Kf2 {[%clk 0:01:15]}  Qxb2+ {[%clk 0:00:16]} 38. Kf3 {[%clk 0:01:13]}  Qc3+ {[%clk 0:00:16]} 39. Kf4 {[%clk 0:01:08]}  Qd2+ {[%clk 0:00:15]} 40. Kg3 {[%clk 0:01:07]}  Qe3+ {[%clk 0:00:14]} 41. Kh2 {[%clk 0:01:06]}  Qf4+ {[%clk 0:00:15]} 42. Kg1 {[%clk 0:01:06]}  Qe3+ {[%clk 0:00:15]} 43. Kf1 {[%clk 0:01:04]}  Qc1+ {[%clk 0:00:14]} 44. Kf2 {[%clk 0:01:02]}  Qf4+ {[%clk 0:00:14]} 45. Ke1 {[%clk 0:00:58]}  Qc1+ {[%clk 0:00:14]} 46. Ke2 {[%clk 0:00:58]}  Qc2+ {[%clk 0:00:12]} 47. Kf3 {[%clk 0:00:58]}  Qc3+ {[%clk 0:00:11]} 48. Ke4 {[%clk 0:00:52]}  Qc2+ {[%clk 0:00:10]} 49. Kd4 {[%clk 0:00:46]}  Qd2+ {[%clk 0:00:09]} 50. Qd3+ {[%clk 0:00:45]}  Qxd3+ {[%clk 0:00:09]} 51. Kxd3 {[%clk 0:00:46]}  Kg6 {[%clk 0:00:08]} 52. a4 {[%clk 0:00:45]} 1-0


[Site "https://www.chess.com"]